bitfinex-derivatives/quotes_SOLF0:USTF0_20260129
["timestamp","ask_amount","ask_price","bid_price","bid_amount"]
[1769696193883,3.5060046,122.82,122.77,10.33364327]
[1769696204790,7.3386,122.83,122.77,7.342]
[1769696204997,3.52473125,122.85,122.8,2.99164327]
[1769696205287,3.52473125,122.84,122.79,2.99164327]
[1769696205493,3.52473125,122.84,122.79,4.97570105]
[1769696206292,3.52473125,122.84,122.79,12.31660105]
[1769696206491,3.52473125,122.84,122.8,4.97570105]
[1769696206682,3.52473125,122.84,122.81,1.98405778]
[1769696207293,3.52473125,122.84,122.8,12.31600105]
[1769696208692,3.52473125,122.84,122.81,1.98405778]
[1769696209691,10.86093125,122.87,122.83,1.98405778]
[1769696210994,10.86093125,122.87,122.84,1.98405778]
[1769696211790,10.86093125,122.87,122.83,1.98405778]
[1769696212391,10.86033125,122.88,122.84,1.98405778]
[1769696212592,189.42702419,122.89,122.86,1.98405778]
[1769696212792,189.42702419,122.89,122.84,5.3513867]
[1769696214893,189.42702419,122.89,122.84,3.36732892]
[1769696217302,5.24125363,122.88,122.82,10.85238489]
[1769696217502,5.24125363,122.87,122.82,3.51328489]
[1769696217904,1.98405778,122.85,122.82,3.51328489]
[1769696219103,1.98405778,122.86,122.82,3.51328489]
[1769696220104,1.98405778,122.85,122.82,3.51328489]
[1769696223208,1.98405778,122.86,122.82,3.51328489]
[1769696223807,1.98405778,122.85,122.82,3.51328489]
[1769696224310,1.98405778,122.84,122.8,10.85348489]
[1769696224706,1.98405778,122.84,122.81,3.51328489]
[1769696224906,1.98405778,122.84,122.81,10.85298489]
[1769696227912,194.66827782,122.89,122.84,3.51328489]
[1769696228517,194.66827782,122.89,122.84,10.85118489]
[1769696229710,7.3338,122.91,122.82,1.98405778]
[1769696229711,3.25719585,122.92,122.86,10.84968489]
[1769696229908,5.24125363,122.92,122.87,3.51328489]
[1769696230616,3.25719585,122.98,122.9,3.51328489]
[1769696230818,1.98405778,122.97,122.9,3.51328489]
[1769696231024,5.24125363,122.97,122.9,3.51328489]
[1769696232420,5.24125363,122.97,122.91,10.84678489]
[1769696233020,5.24125363,122.97,122.92,7.333]
[1769696233225,5.24125363,122.97,122.92,10.84628489]
[1769696233527,1.98405778,122.95,122.88,114.1037]
[1769696233721,1.98405778,122.95,122.89,3.51328489]
[1769696235225,3.25719585,122.96,122.89,3.51328489]
[1769696235433,1.98405778,122.96,122.91,10.84698489]
[1769696236525,3.25719585,122.97,122.91,10.84698489]
[1769696236726,1.98405778,122.96,122.91,10.84698489]
[1769696237933,1.98405778,122.96,122.92,10.84618489]
[1769696242231,1.98405778,122.95,122.92,10.84618489]
[1769696242529,1.98405778,122.93,122.9,3.51328489]
[1769696245536,1.98405778,122.94,122.9,3.51328489]
[1769696246538,7.3304,122.97,122.92,3.46991841]
[1769696246730,5.42550931,122.98,122.92,3.46991841]
[1769696247333,1.98405778,122.96,122.92,3.46991841]
[1769696249037,1.98405778,122.96,122.9,3.46991841]
[1769696249038,1.98405778,122.94,122.9,3.46991841]
[1769696250435,1.98405778,122.94,122.9,10.80421841]
[1769696251737,1.98405778,122.94,122.88,10.80491841]
[1769696251738,1.98405778,122.91,122.88,10.80491841]
[1769696252540,1.98405778,122.92,122.88,10.80491841]
[1769696254538,1.98405778,122.91,122.88,10.80491841]
[1769696254941,3.44145153,122.94,122.89,7.3349]
[1769696255141,1.98405778,122.93,122.89,10.6919517]
[1769696255544,1.98087035,122.92,122.89,10.6919517]
[1769696261852,5.3337024,122.97,122.9,3.3570517]
[1769696262248,12.6639024,122.97,122.91,10.6907517]
[1769696264754,12.6639024,122.97,122.92,3.3570517]
[1769696266053,3.35283205,122.97,122.92,10.6899517]
[1769696267151,1.98087035,122.95,122.9,10.6908517]
[1769696267342,5.3337024,122.95,122.9,10.6908517]
[1769696267543,12.6658024,122.94,122.88,10.6925517]
[1769696268354,1.98087035,122.93,122.88,10.6925517]
[1769696268750,1.98087035,122.93,122.88,3.3570517]
[1769696268751,1.98087035,122.92,122.88,3.3570517]
[1769696270450,1.98087035,122.9,122.86,10.6937517]
[1769696272851,5.3337024,122.91,122.86,10.6937517]
[1769696274757,9.31417035,122.92,122.86,10.6937517]
[1769696276059,9.31417035,122.92,122.87,3.53741882]
[1769696276759,1.98087035,122.92,122.87,10.87341882]
[1769696277964,5.52980982,122.92,122.87,10.87341882]
[1769696279857,5.52980982,122.92,122.88,7.3354]
[1769696280058,3.54893947,122.92,122.88,7.3354]
[1769696281764,3.54893947,122.92,122.87,3.53741882]
[1769696283369,3.54893947,122.92,122.87,10.87351882]
[1769696288679,10.88213947,122.92,122.87,3.53741882]
[1769696293577,3.54893947,122.91,122.87,3.53741882]
[1769696313290,3.54893947,122.91,122.86,7.59672199]
[1769696313497,3.50761783,122.9,122.85,11.1665593]
[1769696314294,10.84201783,122.9,122.85,11.1665593]
[1769696315596,12.8239942,122.9,122.85,3.56983731]
[1769696315987,3.50761783,122.88,122.83,3.56983731]
[1769696316397,3.50761783,122.88,122.83,10.90823731]
[1769696318196,10.84371783,122.88,122.83,3.56983731]
[1769696321797,3.50761783,122.87,122.82,7.3391]
[1769696321994,3.50761783,122.87,122.82,12.89091368]
[1769696322196,10.84391783,122.87,122.82,5.55181368]
[1769696324300,10.84391783,122.87,122.83,3.56983731]
[1769696324999,3.50761783,122.87,122.83,3.56983731]
[1769696330310,7.3356,122.88,122.83,3.56983731]
[1769696330502,10.84321783,122.88,122.83,3.56983731]
[1769696333915,10.84321783,122.88,122.83,10.90833731]
[1769696334907,10.84231783,122.9,122.84,10.90773731]
[1769696335105,10.84231783,122.9,122.85,5.55181368]
[1769696335106,3.50761783,122.9,122.85,5.55181368]
[1769696335407,3.22977323,122.92,122.88,5.21631834]
[1769696337108,3.22977323,122.92,122.88,3.23434197]
[1769696346913,3.22977323,122.92,122.86,10.57104197]
[1769696347117,3.22977323,122.91,122.86,7.3367]
[1769696350020,10.56347323,122.91,122.85,10.57154197]
[1769696353622,10.56347323,122.91,122.85,12.55351834]
[1769696366235,7.3343,122.9,122.85,12.55351834]
[1769696375546,7.3343,122.9,122.85,12.55289045]
[1769696381238,10.62514262,122.9,122.85,3.23434197]
[1769696381445,10.62604262,122.89,122.85,3.23434197]
[1769696381846,10.62604262,122.89,122.83,12.88299554]
[1769696381847,3.29084262,122.89,122.83,12.88299554]
[1769696382247,7.3355,122.88,122.84,3.29608238]
[1769696383753,7.3347,122.9,122.85,3.29608238]
[1769696384451,10.62554262,122.9,122.85,3.29608238]
[1769696392757,10.62434262,122.92,122.86,3.29608238]
[1769696392958,10.62434262,122.92,122.87,3.29608238]
[1769696395259,3.28100769,122.91,122.87,3.29608238]
[1769696397462,10.61480769,122.91,122.85,18.40262179]
[1769696397664,3.28100769,122.9,122.85,5.44120559]
[1769696397857,3.28100769,122.9,122.85,3.45985711]
[1769696399262,5.26235617,122.9,122.85,3.45985711]
[1769696400263,3.28100769,122.9,122.85,3.45985711]
[1769696400561,7.3338,122.91,122.86,3.45985711]
[1769696400758,10.61480769,122.91,122.86,3.45985711]
[1769696402761,3.28100769,122.91,122.86,10.79655711]
[1769696416274,3.28100769,122.91,122.87,3.45985711]
[1769696416780,7.3332,122.92,122.87,3.45985711]
[1769696417080,10.61420769,122.92,122.87,3.45985711]
[1769696420781,10.61420769,122.92,122.87,10.79595711]
[1769696424683,3.28100769,122.92,122.87,10.79595711]
[1769696430394,9.31394848,122.93,122.88,3.5742697]
[1769696430691,10.690493,122.93,122.88,3.5742697]
[1769696433402,3.357893,122.93,122.88,10.9095697]
[1769696433599,3.357893,122.93,122.89,3.53546485]
[1769696437502,3.357893,122.93,122.89,10.87026485]
[1769696438502,3.56622301,122.95,122.9,10.86976485]
[1769696440902,3.56622301,122.95,122.91,3.53546485]
[1769696442605,240.08689698,122.97,122.91,12.84945288]
[1769696442803,232.46350009,122.97,122.91,12.84945288]
[1769696443009,3.56622301,122.96,122.91,12.84945288]
[1769696443704,3.56622301,122.96,122.91,10.86916485]
[1769696447910,3.56622301,122.96,122.92,3.53546485]
[1769696455013,3.56622301,122.96,122.92,10.86856485]
[1769696455715,221.56707708,122.97,122.93,10.8608258]
[1769696456014,3.514747,122.98,122.93,10.8608258]
[1769696460015,5.49503503,122.98,122.93,10.8608258]
[1769696460221,12.82473503,122.98,122.93,10.8608258]
[1769696464322,1.98028803,122.99,122.95,3.5283258]
[1769696464525,12.82393503,123.0,122.95,3.5283258]
[1769696465017,1.98028803,123.0,122.96,3.5283258]
[1769696465320,205.11809229,123.01,122.96,3.5283258]
[1769696465522,208.63283929,123.01,122.96,3.5283258]
[1769696470522,1.98028803,123.0,122.96,3.5283258]
[1769696472522,5.49503503,123.0,122.96,3.5283258]
[1769696475323,1.98028803,122.99,122.96,3.5283258]
[1769696476718,1.98028803,122.99,122.94,10.8601258]
[1769696477522,1.98028803,122.98,122.94,10.8601258]
[1769696490129,10.843247,123.0,122.94,10.8601258]
[1769696490333,1.98028803,122.99,122.95,3.26488473]
[1769696490542,12.82353503,123.0,122.95,3.26488473]
[1769696490839,12.82353503,123.0,122.95,10.59618473]
[1769696491041,7.3285,123.0,122.96,3.26488473]
[1769696493941,438.8121,123.03,122.97,3.5266178]
[1769696493942,1.98028803,123.02,122.97,3.5266178]
[1769696494149,3.36625245,123.03,122.97,3.5266178]
[1769696494150,3.36625245,123.03,122.98,3.5266178]
[1769696495031,3.36625245,123.03,122.98,10.8561178]
[1769696495341,3.36625245,123.03,122.98,3.5266178]
[1769696495735,5.34654048,123.03,122.98,3.5266178]
[1769696496445,12.67314048,123.03,122.98,3.5266178]
[1769696497544,12.67033676,123.03,122.98,3.5266178]
[1769696498746,5.34373676,123.03,122.98,3.5266178]
[1769696500853,5.34373676,123.03,122.98,10.8561178]
[1769696501847,10.69175245,123.05,122.99,10.8555178]
[1769696502045,5.34373676,123.04,122.99,10.8555178]
[1769696502747,1.97748431,123.03,122.99,10.8555178]
[1769696503749,5.34373676,123.03,122.99,10.8555178]
[1769696505547,5.34373676,123.03,122.95,121.63339553]
[1769696505548,1.97748431,123.02,122.98,7.3291]
[1769696505739,5.34373676,123.02,122.98,7.3291]
[1769696507648,1.97748431,123.01,122.98,7.3291]
[1769696508740,7.59488346,123.06,122.95,121.63339553]
[1769696508741,5.34373676,123.0,122.95,11.11991333]
[1769696508948,1.97748431,122.99,122.95,3.5266178]
[1769696509248,5.34373676,123.0,122.95,3.5266178]
[1769696509550,1.97748431,123.01,122.95,3.5266178]
[1769696510349,1.97748431,123.01,122.97,7.3301]
[1769696513058,1.97748431,123.0,122.97,7.3301]
[1769696513753,1.97748431,123.0,122.96,3.5266178]
[1769696518453,1.97748431,123.0,122.96,10.8571178]
[1769696519260,1.97748431,123.02,122.98,3.35812854]
[1769696519662,1.97748431,123.03,122.98,3.35812854]
[1769696520349,1.97748431,123.03,122.98,10.68752854]
[1769696521055,1.97748431,123.03,122.99,3.35812854]
[1769696521358,3.48498762,123.04,122.99,3.35812854]
[1769696521750,3.48498762,123.04,122.99,10.68702854]
[1769696522460,3.48498762,123.06,123.01,3.35812854]
[1769696522850,3.48498762,123.06,123.01,10.68592854]
[1769696523158,3.48498762,123.06,123.02,3.35812854]
[1769696523560,5.46247193,123.08,123.02,3.35812854]
[1769696523955,3.48498762,123.08,123.02,3.35812854]
[1769696524163,5.46247193,123.08,123.02,3.35812854]
[1769696524371,5.46247193,123.08,123.03,7.3266]
[1769696525664,3.48498762,123.08,123.03,7.3266]
[1769696526067,5.46247193,123.08,123.02,10.68522854]
[1769696528365,5.46247193,123.06,123.02,3.35812854]
[1769696528764,3.48498762,123.06,123.02,3.35812854]
[1769696544684,10.80988762,123.06,123.02,3.35812854]
[1769696545684,7.3254,123.05,123.02,3.35812854]
[1769696546785,7.3254,123.05,123.0,1.97748431]
[1769696547781,1.97748431,123.04,122.97,267.59646758]
[1769696547986,1.97748431,123.04,122.97,269.57395189]
[1769696548981,1.97748431,123.04,122.98,3.14117073]
[1769696549382,7.3267,123.03,122.98,3.14117073]
[1769696560883,7.3267,123.03,122.98,5.11847909]
[1769696562984,10.70395406,123.03,122.98,5.11847909]
[1769696563190,10.70395406,123.03,122.98,3.14117073]
[1769696567999,10.70395406,123.03,122.98,5.11847909]
[1769696586410,10.70395406,123.03,122.98,12.44797909]
[1769696591726,7.3261,123.04,122.99,3.14336636]
[1769696591925,7.3261,123.04,122.99,5.12067472]
[1769696592121,10.66879243,123.04,122.99,5.12067472]
[1769696592424,3.34269243,123.03,122.99,5.12067472]
[1769696592722,3.34269243,123.03,122.98,7.3295]
[1769696592926,3.34269243,123.03,122.99,1.97730836]
[1769696593826,10.66929243,123.03,122.98,7.3295]
[1769696594029,10.66929243,123.03,122.98,12.45017472]
[1769696594829,3.34269243,123.03,122.98,12.45017472]
[1769696599829,3.34269243,123.03,122.98,20.04347025]
[1769696602235,3.34269243,123.03,122.99,1.97730836]
[1769696606233,3.34269243,123.03,122.98,18.06616189]
[1769696606234,10.66949243,123.03,122.98,3.14336636]
[1769696606538,3.26280789,123.02,122.98,5.12067472]
[1769696610235,3.26280789,123.02,122.98,3.14336636]
[1769696610444,3.26280789,123.02,122.98,5.12067472]
[1769696616247,3.26280789,123.02,122.98,12.71397025]
[1769696619546,3.26280789,123.02,122.98,12.71368487]
[1769696622247,3.26280789,123.02,122.98,12.74303914]
[1769696626654,3.26280789,123.02,122.98,10.76601616]
[1769696638870,10.59000789,123.02,122.98,12.74303914]
[1769696639166,3.29949357,123.01,122.97,277.19614036]
[1769696639365,10.62729357,123.01,122.97,275.21911738]
[1769696639569,10.62729357,123.01,122.97,267.59646758]
[1769696639956,10.62729357,123.01,122.96,337.48486728]
[1769696640163,10.62729357,123.01,122.96,335.5078443]
[1769696641070,10.62729357,123.01,122.96,327.8851945]
[1769696641269,10.62789357,123.0,122.95,7.6226498]
[1769696641767,10.62789357,123.0,122.94,20.07676728]
[1769696641965,10.62789357,123.0,122.95,3.1451945]
[1769696642858,7.329,122.99,122.95,3.1451945]
[1769696643065,3.29949357,122.98,122.93,10.7678443]
[1769696643368,3.29949357,122.98,122.93,3.1451945]
[1769696643568,10.62909357,122.98,122.93,3.1451945]
[1769696644970,10.62969357,122.97,122.93,3.1451945]
[1769696646167,10.62969357,122.97,122.91,329.86221748]
[1769696646568,10.62969357,122.97,122.92,3.1451945]
[1769696647169,10.63029357,122.96,122.9,5.12221748]
[1769696647471,3.29949357,122.95,122.9,5.12221748]
[1769696649469,3.29949357,122.95,122.9,3.1451945]
[1769696652465,3.29949357,122.95,122.9,5.12221748]
[1769696652776,10.63089357,122.95,122.9,5.12221748]
[1769696661781,10.63089357,122.95,122.91,1.97702298]
[1769696665789,7.3305,122.97,122.92,1.97702298]
[1769696667881,10.81683162,122.97,122.92,1.97702298]
[1769696668388,7.3296,122.98,122.93,5.37188944]
[1769696668585,3.48633162,122.99,122.93,5.37188944]
[1769696669787,3.48633162,122.98,122.93,12.70438944]
[1769696672087,3.48633162,122.98,122.94,1.97702298]
[1769696672983,3.48633162,122.98,122.93,12.70438944]
[1769696674284,3.48633162,122.98,122.93,1.97702298]
[1769696674588,3.48633162,122.98,122.91,3.57278366]
[1769696674791,3.48633162,122.98,122.92,1.97702298]
[1769696675279,10.57013834,122.97,122.92,1.97702298]
[1769696675485,3.23993834,122.96,122.92,1.97702298]
[1769696675681,3.23993834,122.96,122.91,10.90648366]
[1769696677691,10.57073834,122.96,122.91,10.90648366]
[1769696682692,10.57123834,122.95,122.91,3.57278366]
[1769696695214,10.57123834,122.95,122.9,9.31390144]
[1769696697614,10.57123834,122.95,122.9,12.67680317]
[1769696699418,3.23993834,122.95,122.9,12.67680317]
[1769696700414,10.57143834,122.95,122.9,5.34250317]
[1769696701220,10.57143834,122.95,122.9,12.67680317]
[1769696701416,10.57143834,122.95,122.9,10.69720173]
[1769696704923,3.23993834,122.95,122.9,10.69720173]
[1769696727145,3.23993834,122.95,122.9,18.31985153]
[1769696731258,3.23993834,122.95,122.91,7.3336]
[1769696738958,3.23993834,122.95,122.9,10.69710173]
[1769696743063,10.57133834,122.95,122.9,3.36290173]
[1769696743563,7.332,122.94,122.9,3.36290173]
[1769696743758,3.2831318,122.94,122.88,10.88803027]
[1769696744165,1.97979082,122.93,122.88,10.88803027]
[1769696744356,5.26292262,122.94,122.88,10.88803027]
[1769696745161,5.26292262,122.94,122.88,3.26538047]
[1769696745459,7.3326,122.93,122.88,3.26538047]
[1769696746466,7.3326,122.93,122.88,10.88803027]
[1769696746767,3.2831318,122.92,122.86,299.97791071]
[1769696747262,5.26292262,122.92,122.86,299.97791071]
[1769696747565,5.26292262,122.92,122.86,292.35526091]
[1769696748266,5.26292262,122.92,122.87,3.26538047]
[1769696748467,12.59612262,122.92,122.87,3.26538047]
[1769696750063,10.6163318,122.92,122.87,3.26538047]
[1769696753170,10.6163318,122.92,122.87,5.24517129]
[1769696755261,10.6163318,122.92,122.88,5.44911769]
[1769696755460,3.2831318,122.92,122.88,5.44911769]
[1769696755667,3.2831318,122.92,122.88,3.46932687]
[1769696771683,3.2831318,122.92,122.88,5.44911769]
[1769696777079,10.6164318,122.92,122.88,3.46932687]
[1769696778688,3.2831318,122.92,122.88,3.46932687]
[1769696781800,10.671702,122.94,122.88,12.78431769]
[1769696785000,3.339702,122.93,122.88,12.78431769]
[1769696787207,10.672302,122.93,122.88,3.46932687]
[1769696790706,10.88879758,122.92,122.86,302.08553814]
[1769696790905,3.55549758,122.91,122.86,294.46874081]
[1769696791814,3.55549758,122.91,122.86,12.71556037]
[1769696792611,3.42799608,122.9,122.86,3.39936955]
[1769696792807,3.42799608,122.9,122.84,20.41112174]
[1769696794112,1.97979082,122.92,122.84,3.47713359]
[1769696794113,3.42799608,122.89,122.84,3.47713359]
[1769696794412,3.42799608,122.89,122.83,9.31829082]
[1769696795208,3.42799608,122.89,122.83,12.79542441]
[1769696795414,10.76299608,122.89,122.83,12.79542441]
[1769696797512,10.76349608,122.88,122.83,5.45692441]
[1769696797809,10.76349608,122.88,122.83,3.47713359]
[1769696798807,10.76349608,122.88,122.82,1.97979082]
[1769696798808,3.42799608,122.87,122.81,3.47713359]
[1769696799009,3.42799608,122.87,122.81,5.45692441]
[1769696799623,3.42799608,122.87,122.82,3.47713359]
[1769696799824,3.42799608,122.87,122.82,5.45692441]
[1769696800718,3.42799608,122.87,122.82,3.47713359]
[1769696801219,7.3361,122.88,122.79,325.02]
[1769696801220,10.76409608,122.88,122.83,5.45692441]
[1769696803623,10.76409608,122.88,122.83,5.45912927]
[1769696804021,3.42799608,122.87,122.83,3.47713359]
[1769696805126,10.76449608,122.87,122.81,3.47713359]
[1769696805318,10.76449608,122.87,122.81,5.45912927]
[1769696809824,3.42799608,122.86,122.81,3.47713359]
[1769696810417,3.42799608,122.86,122.81,5.45912927]
[1769696811421,3.42799608,122.85,122.8,1.98199568]
[1769696811727,3.42799608,122.85,122.79,3.47713359]
[1769696812319,3.42799608,122.85,122.79,5.45912927]
[1769696813326,10.76559608,122.85,122.79,3.47713359]
[1769696813922,3.42799608,122.84,122.79,3.47713359]
[1769696814321,5.40999176,122.81,122.75,3.47713359]
[1769696814629,3.42799608,122.8,122.75,3.47713359]
[1769696815824,3.42799608,122.8,122.75,10.82033359]
[1769696820036,5.40999176,122.8,122.75,10.82033359]
[1769696821532,5.40999176,122.8,122.75,3.47713359]
[1769696821733,1.98199568,122.79,122.75,3.47713359]
[1769696823537,5.43902848,122.79,122.73,10.6709384]
[1769696823734,1.98199568,122.78,122.73,10.6709384]
[1769696824133,5.43902848,122.79,122.74,10.6708384]
[1769696826536,1.98199568,122.78,122.72,7.3446]
[1769696826742,1.98199568,122.74,122.69,3.3270384]
[1769696827238,5.43902848,122.75,122.69,3.3270384]
[1769696827541,3.4570328,122.75,122.69,3.3270384]
[1769696828138,3.4570328,122.75,122.69,5.30903408]
[1769696828444,3.4570328,122.75,122.71,10.6726384]
[1769696828744,12.78112848,122.77,122.71,10.6726384]
[1769696829041,3.4570328,122.76,122.71,10.6726384]
[1769696831945,3.4570328,122.78,122.73,3.3270384]
[1769696833446,3.4570328,122.78,122.73,10.6715384]
[1769696833950,3.4570328,122.78,122.74,3.3270384]
[1769696834645,3.4570328,122.78,122.73,7.3445]
[1769696834947,3.4570328,122.78,122.73,12.65353408]
[1769696838041,3.4570328,122.78,122.73,3.3270384]
[1769696838244,3.4570328,122.76,122.71,3.3270384]
[1769696838449,3.4570328,122.75,122.69,3.3270384]
[1769696838745,5.43902848,122.75,122.69,10.6733384]
[1769696838938,3.4570328,122.75,122.7,5.30903408]
[1769696839352,3.4570328,122.75,122.7,3.3270384]
[1769696840549,3.4570328,122.75,122.7,10.6728384]
[1769696843155,5.43902848,122.75,122.7,10.6728384]
[1769696843452,5.43902848,122.74,122.69,7.3468]
[1769696843748,5.43902848,122.73,122.68,3.3270384]
[1769696844156,5.43902848,122.73,122.68,10.6744384]
[1769696846054,5.46360416,122.72,122.67,7.348]
[1769696846241,114.2053,122.78,122.67,7.348]
[1769696846242,3.48160848,122.79,122.72,3.51707003]
[1769696846445,3.48160848,122.79,122.74,1.98199568]
[1769696846755,3.48160848,122.79,122.73,3.51707003]
[1769696847140,3.48160848,122.78,122.71,5.49906571]
[1769696847353,3.48160848,122.77,122.71,3.51707003]
[1769696848454,3.48160848,122.77,122.72,7.3448]
[1769696849451,3.48160848,122.77,122.71,3.51707003]
[1769696849850,5.46360416,122.75,122.69,3.51707003]
[1769696850056,1.98199568,122.74,122.69,3.51707003]
[1769696850850,5.46360416,122.77,122.71,3.51707003]
[1769696851049,1.98199568,122.76,122.71,3.51707003]
[1769696851652,5.46360416,122.76,122.71,3.51707003]
[1769696851954,12.80630416,122.76,122.71,3.51707003]
[1769696854550,1.98199568,122.74,122.69,3.55036827]
[1769696854755,114.204,122.78,122.67,3.55036827]
[1769696854756,1.98199568,122.71,122.67,3.55036827]
[1769696854949,1.98199568,122.69,122.65,3.55036827]
[1769696855142,1.98199568,122.68,122.63,3.55036827]
[1769696855351,10.74740343,122.69,122.63,3.55036827]
[1769696855552,1.98199568,122.68,122.63,3.55036827]
[1769696856354,5.38249911,122.69,122.63,3.55036827]
[1769696857358,5.38249911,122.69,122.63,10.90076827]
[1769696859852,5.38249911,122.69,122.64,3.55036827]
[1769696860362,3.40050343,122.73,122.68,3.55036827]
[1769696860555,3.40050343,122.73,122.68,5.53236395]
[1769696861767,3.40050343,122.73,122.68,3.55036827]
[1769696862752,5.38249911,122.72,122.66,3.55036827]
[1769696863144,114.2237,122.76,122.64,1.98199568]
[1769696863145,114.2237,122.76,122.67,5.53236395]
[1769696863350,5.38249911,122.74,122.67,3.55036827]
[1769696863559,5.38249911,122.74,122.68,3.55036827]
[1769696863960,3.40050343,122.73,122.68,3.55036827]
[1769696864454,114.2237,122.76,122.66,3.55036827]
[1769696864455,5.38249911,122.72,122.66,3.55036827]
[1769696865464,12.72759911,122.72,122.66,3.55036827]
[1769696865654,12.73311958,122.72,122.66,3.55036827]
[1769696865858,3.40050343,122.72,122.66,5.53788442]
[1769696867458,3.40050343,122.72,122.67,1.98751615]
[1769696868165,3.40050343,122.72,122.66,12.88648442]
[1769696869061,3.40050343,122.72,122.67,10.89826827]
[1769696869271,3.40050343,122.72,122.67,12.88578442]
[1769696872062,3.40050343,122.72,122.67,10.89826827]
[1769696877570,3.26450359,122.75,122.69,3.48514168]
[1769696877768,3.26450359,122.75,122.69,5.47265783]
[1769696879166,3.26450359,122.75,122.69,3.48514168]
[1769696879366,3.26450359,122.75,122.69,10.83144168]
[1769696879872,5.25201974,122.75,122.69,10.83144168]
[1769696880266,3.26450359,122.75,122.7,10.83104168]
[1769696881374,5.25201974,122.77,122.71,10.83074168]
[1769696882071,3.26450359,122.76,122.71,10.83074168]
[1769696882370,5.25201974,122.76,122.71,7.3456]
[1769696882871,5.25201974,122.76,122.7,10.83134168]
[1769696883769,3.26450359,122.74,122.66,7.61679733]
[1769696883972,1.98751615,122.71,122.66,3.48514168]
[1769696884178,1.98751615,122.69,122.64,3.48514168]
[1769696884366,1.98751615,122.67,122.64,3.48514168]
[1769696884565,5.25201974,122.69,122.64,3.48514168]
[1769696885173,3.26450359,122.69,122.64,3.48514168]
[1769696885369,1.98751615,122.68,122.64,3.48514168]
[1769696886160,7.3458,122.71,122.64,7.3497]
[1769696886161,1.98751615,122.7,122.64,7.3497]
[1769696886571,7.345,122.73,122.65,1.98751615]
[1769696886767,9.33251615,122.73,122.66,1.98751615]
[1769696887270,3.26450359,122.71,122.62,7.61679733]
[1769696887472,3.26450359,122.7,122.61,7.3516]
[1769696887680,1.98751615,122.69,122.61,9.33911615]
[1769696888178,1.98751615,122.69,122.62,2.96123529]
[1769696888975,10.60990359,122.72,122.65,2.96123529]
[1769696889173,5.25201974,122.72,122.65,2.96123529]
[1769696889378,3.26450359,122.72,122.65,4.94875144]
[1769696890378,3.26450359,122.72,122.65,2.96123529]
[1769696890680,5.25201974,122.72,122.65,2.96123529]
[1769696891279,1.98751615,122.71,122.65,2.96123529]
[1769696894879,5.25201974,122.72,122.65,2.96123529]
[1769696895280,5.25201974,122.72,122.66,2.96123529]
[1769696895581,3.26450359,122.74,122.66,2.96123529]
[1769696895782,5.25201974,122.74,122.67,2.96123529]
[1769696896283,1.98751615,122.72,122.67,2.96123529]
[1769696898587,1.98751615,122.72,122.65,7.3492]
[1769696898785,1.98751615,122.72,122.66,7.3486]
[1769696898986,5.25201974,122.73,122.66,7.3486]
[1769696901185,5.25201974,122.73,122.66,3.26669963]
[1769696905192,5.25201974,122.73,122.67,7.348]
[1769696905591,3.58069044,122.72,122.67,7.348]
[1769696910890,5.56820659,122.71,122.65,7.3488]
[1769696911097,3.58069044,122.7,122.65,7.3488]
[1769696911690,1.98751615,122.67,122.63,7.3499]
[1769696911888,1.98751615,122.66,122.6,121.98169733]
[1769696912086,1.98751615,122.66,122.59,9.03567079]
[1769696912491,1.98751615,122.65,122.59,9.03567079]
[1769696913095,1.98751615,122.65,122.59,123.41197079]
[1769696913393,1.98751615,122.67,122.59,117.78268961]
[1769696913588,1.98751615,122.67,122.59,125.39948694]
[1769696913791,1.98751615,122.67,122.59,117.78268961]
[1769696914091,1.98751615,122.66,122.59,117.78268961]
[1769696914395,1.98751615,122.66,122.62,7.351]
[1769696918299,3.58069044,122.67,122.62,7.351]
[1769696918596,1.98751615,122.66,122.62,7.351]
[1769696919392,1.98751615,122.68,122.63,7.3503]
[1769696919995,1.98751615,122.66,122.62,7.3511]
[1769696921992,5.56820659,122.68,122.62,7.3511]
[1769696922193,3.58069044,122.67,122.62,7.3511]
[1769696922402,5.56820659,122.66,122.58,114.3837]
[1769696923398,5.56820659,122.66,122.6,7.3523]
[1769696924796,3.58069044,122.66,122.6,7.3523]
[1769696925002,1.98751615,122.65,122.6,7.3523]
[1769696926703,1.98751615,122.65,122.61,7.3517]
[1769696927003,5.56820659,122.66,122.61,7.3517]
[1769696927605,5.5701159,122.66,122.61,7.3517]
[1769696929706,3.58069044,122.66,122.61,7.3517]
[1769696929905,1.98942546,122.66,122.61,7.3517]
[1769696931107,1.98942546,122.64,122.6,7.3522]
[1769696931311,3.58069044,122.63,122.56,7.61679733]
[1769696931514,1.98942546,122.59,122.53,11.36558976]
[1769696931807,3.58069044,122.6,122.53,118.17949243]
[1769696932203,1.98942546,122.61,122.54,114.4252]
[1769696933303,1.98942546,122.61,122.55,7.3551]
[1769696934205,3.58069044,122.61,122.55,7.3551]
[1769696934409,1.98942546,122.59,122.53,11.10489243]
[1769696934700,5.5701159,122.58,122.53,3.74879243]
[1769696934907,1.98942546,122.55,122.49,122.08669733]